bitfinex/quotes_ETHUSD_20260202
["timestamp","ask_amount","ask_price","bid_price","bid_amount"]
[1769993985187,0.01342642,2294.6,2293.9,1.08982556]
[1769993985358,0.01342642,2294.5,2293.9,1.08982556]
[1769993985561,0.01342642,2294.5,2293.9,1.63485875]
[1769993986588,0.01342642,2294.4,2293.7,1.09093734]
[1769993986787,0.01342642,2294.4,2293.8,1.08989432]
[1769993986994,0.01342642,2294.5,2293.9,1.08983239]
[1769993987189,0.01342642,2294.5,2293.7,0.001]
[1769993987414,0.01342642,2294.3,2293.8,1.08988815]
[1769993987607,0.01342642,2294.4,2293.8,1.08988815]
[1769993987786,0.01342642,2294.3,2293.7,1.09090898]
[1769993988313,0.01342642,2294.7,2293.7,0.001]
[1769993988470,0.01342642,2294.8,2293.7,0.001]
[1769993988673,2.01583451,2294.9,2293.7,12.63259533]
[1769993989290,0.01342642,2294.8,2293.7,12.63259533]
[1769993989488,0.01342642,2294.7,2293.7,12.63259533]
[1769993989928,0.92642642,2294.9,2293.7,12.63259533]
[1769993990115,0.913,2294.9,2293.8,13.98625486]
[1769993990317,2.00238197,2294.9,2293.9,1.08984698]
[1769993990521,0.913,2294.9,2293.9,1.08984698]
[1769993990882,0.913,2294.9,2293.9,1.09084698]
[1769993991219,1.10271849,2295.1,2293.9,13.72244231]
[1769993991398,1.10271849,2295.1,2294.0,1.94364898]
[1769993991715,0.01342642,2295.2,2294.0,14.57524431]
[1769993992131,0.92642642,2295.5,2294.0,14.57524431]
[1769993992132,2.01553822,2295.5,2294.0,14.57524431]
[1769993992477,0.92642642,2295.5,2294.2,12.63159533]
[1769993992598,0.913,2295.5,2294.4,12.63159533]
[1769993992803,0.913,2295.5,2294.5,1.35445953]
[1769993993318,0.01342642,2295.4,2294.5,1.35445953]
[1769993994426,0.01342642,2295.6,2294.6,1.08951451]
[1769993994597,1.10354655,2295.7,2294.6,1.08951451]
[1769993994794,0.01342642,2295.5,2294.7,0.68020321]
[1769993995019,0.01342642,2295.3,2294.7,0.68020321]
[1769993995300,0.01342642,2295.2,2294.5,2.44398718]
[1769993995616,0.01342642,2295.3,2294.5,1.08952765]
[1769993995812,0.01342642,2295.4,2294.5,1.08952765]
[1769993996030,0.01342642,2295.3,2294.5,1.08952765]
[1769993996798,0.01342642,2295.3,2294.4,4.35836205]
[1769993996995,0.01342642,2295.4,2294.4,4.35836205]
[1769993997200,0.01342642,2295.4,2294.5,1.89925669]
[1769993997644,0.01342642,2295.2,2294.5,1.89925669]
[1769993997838,0.01342642,2295.2,2294.4,4.35836205]
[1769993998433,0.01342642,2295.1,2294.4,4.35836205]
[1769993999960,0.01342642,2295.3,2294.4,4.35836205]
[1769994000521,1.10253476,2295.5,2294.4,4.35836205]
[1769994001040,1.10260014,2295.4,2294.4,4.35836205]
[1769994001221,0.56201213,2295.4,2294.5,0.63609715]
[1769994001427,0.0011,2295.7,2294.5,13.26769248]
[1769994001731,0.01342642,2295.3,2294.5,0.63609715]
[1769994001931,0.01342642,2294.9,2294.2,1.08969703]
[1769994002131,0.01342642,2294.9,2294.0,6.30283119]
[1769994002132,0.01342642,2294.7,2294.1,1.08972272]
[1769994002339,6.03188431,2295.9,2294.3,13.72122339]
[1769994002538,0.0011,2295.7,2294.3,13.72122339]
[1769994002863,0.0011,2296.4,2295.0,12.63159533]
[1769994003165,0.0011,2296.4,2295.3,1.08918224]
[1769994003464,0.0011,2296.4,2295.3,13.72077757]
[1769994004169,0.01342642,2296.2,2295.3,1.08918224]
[1769994004324,0.01342642,2296.0,2295.3,1.08918224]
[1769994004530,0.01342642,2296.0,2295.3,1.76008931]
[1769994004958,0.01342642,2296.0,2295.3,0.67090707]
[1769994005160,0.01342642,2295.5,2294.5,16.98981181]
[1769994005367,0.01342642,2295.7,2294.8,4.35767085]
[1769994005565,0.01342642,2295.7,2295.1,1.05826735]
[1769994005866,0.01342642,2295.8,2295.1,1.05826735]
[1769994006053,0.01342642,2295.7,2295.2,0.54155246]
[1769994006254,0.01342642,2295.4,2294.5,1.0895287]
[1769994006431,0.01342642,2295.2,2294.5,1.08953169]
[1769994006637,4.36901682,2296.1,2294.9,1.08936744]
[1769994006834,0.01342642,2295.3,2294.1,0.001]
[1769994007168,1.1027985,2294.9,2294.1,0.001]
[1769994007338,0.01342642,2295.1,2294.1,2.54844172]
[1769994007544,0.01342642,2294.9,2294.1,0.001]
[1769994007878,0.01342642,2295.1,2294.0,1.08976652]
[1769994008075,0.01342642,2294.9,2294.0,1.08976652]
[1769994008279,0.01342642,2294.8,2294.0,1.08976652]
[1769994008574,0.01342642,2295.0,2294.0,1.08976652]
[1769994008775,0.01342642,2294.9,2294.1,0.54489644]
[1769994009371,1.08939252,2294.9,2294.1,0.54489644]
[1769994009577,1.08939252,2294.9,2293.3,7.15828375]
[1769994009578,0.01342642,2294.5,2293.3,2.79794151]
[1769994009748,0.01342642,2294.2,2293.4,1.09005424]
[1769994009948,0.01342642,2294.2,2293.5,1.09003113]
[1769994010176,0.01342642,2294.6,2293.8,1.08989125]
[1769994010386,1.377772,2294.6,2293.7,1.08990715]
[1769994010679,1.36434558,2294.6,2293.3,15.98157454]
[1769994010975,1.10281894,2294.9,2293.9,1.08982243]
[1769994011163,1.08960948,2294.4,2293.3,2.79794151]
[1769994011476,0.01342642,2294.2,2293.3,3.88804116]
[1769994011679,0.01342642,2294.2,2293.4,0.82487502]
[1769994011847,0.01342642,2294.1,2293.4,0.82487502]
[1769994012265,0.01342642,2294.2,2293.4,0.82487502]
[1769994012474,0.01342642,2294.6,2293.4,0.82487502]
[1769994012684,2.01588232,2294.8,2293.4,0.82487502]
[1769994012871,0.93635034,2294.7,2293.5,0.47129162]
[1769994013062,2.0024559,2294.8,2293.5,0.47129162]
[1769994013262,2.0024559,2294.8,2293.6,1.08998953]
[1769994013457,0.913,2294.8,2293.6,1.08998953]
[1769994013665,0.913,2294.8,2293.6,14.27362256]
[1769994013856,0.913,2294.8,2293.7,1.91048723]
[1769994014054,2.00242105,2294.8,2293.7,1.91048723]
[1769994014281,0.913,2294.8,2293.7,1.91048723]
[1769994014483,1.08929678,2295.1,2293.8,0.913]
[1769994014656,1.08929678,2295.1,2293.9,0.28234872]
[1769994014977,0.01342642,2295.1,2293.9,1.19534872]
[1769994015179,0.01342642,2294.8,2293.9,0.28234872]
[1769994015382,1.1028222,2294.9,2294.0,1.08979947]
[1769994015558,0.54736959,2294.8,2294.0,1.08979947]
[1769994016260,0.0011,2294.7,2294.0,1.08979947]
[1769994016468,0.0011,2294.7,2293.5,0.001]
[1769994016469,0.01342642,2294.4,2293.5,0.001]
[1769994016668,0.01342642,2294.1,2293.5,0.001]
[1769994016878,0.01342642,2294.1,2293.5,1.09103456]
[1769994016879,0.01342642,2294.0,2293.5,1.09103456]
[1769994017076,0.01342642,2294.0,2293.5,0.001]
[1769994017486,0.01342642,2294.1,2293.5,0.001]
[1769994017660,0.01342642,2294.6,2293.5,0.82605083]
[1769994017861,1.0895279,2294.6,2293.5,0.82605083]
[1769994018380,0.01342642,2294.4,2293.5,0.82605083]
[1769994018581,0.01342642,2294.3,2293.5,0.82605083]
[1769994018880,0.01342642,2294.1,2293.5,0.82605083]
[1769994019081,0.01342642,2294.1,2293.5,0.001]
[1769994020363,1.10318644,2294.1,2293.5,0.001]
[1769994020586,1.08969208,2294.3,2293.5,0.001]
[1769994020887,0.01342642,2294.2,2293.5,0.001]
[1769994021086,1.08969208,2294.3,2293.5,0.001]
[1769994021257,0.01342642,2294.3,2293.5,0.001]
[1769994021597,15.17669102,2294.7,2293.5,14.09863303]
[1769994021598,0.0011,2294.7,2293.5,14.09863303]
[1769994021956,0.0011,2294.9,2293.5,14.09863303]
[1769994022179,0.0011,2294.9,2293.8,13.18363303]
[1769994022379,0.30535973,2295.5,2293.8,13.18363303]
[1769994022380,1.39446978,2295.5,2293.8,13.18363303]
[1769994022589,0.53754935,2295.5,2294.0,13.18363303]
[1769994022990,1.62663688,2295.5,2294.0,13.18363303]
[1769994023488,0.01342642,2295.4,2294.1,1.08975197]
[1769994023676,1.6400633,2295.5,2294.2,0.914]
[1769994024086,0.55097577,2295.5,2294.2,0.914]
[1769994024396,1.3944746,2295.5,2294.2,14.09763303]
[1769994024790,1.40790102,2295.5,2294.2,13.18363303]
[1769994024976,1.3444746,2295.5,2294.3,0.914]
[1769994025569,1.3444746,2295.5,2294.4,1.08960948]
[1769994025763,0.25535973,2295.5,2294.4,1.08960948]
[1769994025967,0.25535973,2295.5,2294.5,13.81983777]
[1769994026194,0.0011,2295.9,2294.5,13.81983777]
[1769994026376,1.09001184,2295.9,2294.5,13.81983777]
[1769994026973,0.0011,2295.9,2294.5,13.81983777]
[1769994027577,0.0011,2295.9,2294.7,13.18363303]
[1769994027787,0.0011,2295.9,2294.8,14.61094778]
[1769994027987,0.0011,2295.9,2294.9,0.913]
[1769994028794,0.0011,2295.9,2294.6,1.08951451]
[1769994028983,0.0011,2295.9,2294.6,2.00251451]
[1769994029184,0.0011,2295.9,2294.6,15.18614754]
[1769994029376,0.0011,2295.9,2294.7,2.01804103]
[1769994029575,0.0011,2295.7,2294.8,1.08941955]
[1769994030102,0.01452642,2295.7,2294.7,1.08943542]
[1769994030302,0.0011,2295.7,2294.7,14.27306845]
[1769994030703,0.0011,2295.7,2294.8,0.913]
[1769994030900,0.0011,2295.7,2294.8,1.54903036]
[1769994031480,0.0011,2295.7,2294.9,1.08937208]
[1769994032709,0.0011,2295.7,2294.8,2.00239774]
[1769994033022,0.01342642,2295.3,2294.5,1.08956058]
[1769994033695,0.01342642,2295.1,2294.2,0.001]
[1769994033895,1.90895483,2295.1,2294.3,1.08965514]
[1769994034205,1.90895483,2295.1,2294.3,1.08962865]
[1769994034422,1.90895483,2295.1,2294.2,1.09067376]
[1769994034621,0.01342642,2295.0,2294.2,1.09067376]
[1769994034922,1.92238125,2295.1,2294.2,1.09067831]
[1769994034923,1.90895483,2295.1,2294.2,1.09067831]
[1769994035211,0.30116109,2295.0,2294.2,1.09067831]
[1769994035396,1.90895483,2295.1,2294.4,1.08958553]
[1769994035707,1.90895483,2295.1,2294.4,1.08958013]
[1769994035912,1.08908734,2295.6,2294.4,1.08958013]
[1769994036095,0.93528132,2295.5,2294.4,1.08958013]
[1769994036296,1.08908734,2295.6,2294.4,1.08958013]
[1769994036492,0.93537004,2295.5,2294.4,2.00258013]
[1769994036687,2.08978935,2295.5,2294.5,0.63612008]
[1769994036991,0.01452642,2295.9,2294.6,13.18363303]
[1769994036992,0.0011,2295.9,2294.6,13.18363303]
[1769994037400,0.0011,2296.5,2294.9,13.18363303]
[1769994037931,0.0011,2296.5,2295.1,13.72830531]
[1769994038094,0.0011,2296.5,2295.3,13.72830531]
[1769994038291,0.0011,2296.5,2295.4,1.46413053]
[1769994039092,0.0011,2296.5,2295.2,0.913]
[1769994039294,0.01452642,2296.5,2295.2,0.913]
[1769994039518,0.0011,2296.5,2295.2,0.913]
[1769994039711,0.0011,2296.5,2295.2,14.64130531]
[1769994039905,0.0011,2296.5,2295.3,1.08918224]
[1769994040208,0.01342642,2296.3,2295.2,1.08919858]
[1769994040393,0.01342642,2296.3,2294.5,14.36442539]
[1769994040394,0.01342642,2296.1,2295.0,1.08929452]
[1769994040590,0.01342642,2296.0,2295.0,1.08929452]
[1769994040806,0.01342642,2296.0,2294.9,1.08933582]
[1769994041118,0.01342642,2296.0,2295.1,0.001]
[1769994041531,0.01342642,2295.6,2294.5,0.63612008]
[1769994041692,0.01342642,2295.6,2294.3,1.08965571]
[1769994041693,0.01342642,2295.1,2294.3,1.08965571]
[1769994042021,1.08933899,2295.0,2294.2,0.001]
[1769994042221,1.08933899,2295.0,2294.0,0.001]
[1769994042222,0.01342642,2294.7,2294.0,0.001]
[1769994042426,0.01342642,2294.3,2293.4,1.09005266]
[1769994042620,0.01342642,2294.3,2293.4,4.36026504]
[1769994042823,0.01342642,2294.7,2293.8,1.08988693]
[1769994043125,0.01342642,2294.6,2293.6,1.08998938]
[1769994043308,0.01342642,2294.5,2293.6,1.08998938]
[1769994043513,0.01342642,2294.4,2293.5,1.09100291]
[1769994043825,1.08951451,2294.6,2293.6,1.63511667]
[1769994043999,12.76195673,2294.4,2293.3,0.001]
[1769994044195,0.01342642,2293.6,2292.7,0.001]
[1769994044414,12.76195673,2293.7,2292.7,1.09141313]
[1769994044617,1.29230738,2293.6,2292.8,0.5453148]
[1769994044902,1.27888096,2293.6,2292.7,1.09141234]
[1769994045212,0.01342642,2294.0,2292.7,1.09141234]
[1769994045420,0.01342642,2293.9,2292.7,1.09141234]
[1769994045616,0.01342642,2293.7,2292.7,0.001]
[1769994045821,1.10341595,2293.6,2292.7,0.001]
[1769994046016,0.54766962,2293.5,2292.7,0.001]
[1769994047424,1.1032734,2294.0,2292.7,0.001]
[1769994047604,4.35943269,2293.9,2292.7,0.001]
[1769994047811,4.35924806,2294.0,2292.7,0.001]
[1769994048023,1.08979947,2294.0,2292.7,0.001]
[1769994048218,1.63602477,2294.0,2292.7,0.001]
[1769994049231,1.64945119,2294.0,2292.7,0.001]
[1769994049904,1.08970447,2294.2,2292.7,13.91881958]
[1769994050526,0.01342642,2294.1,2292.7,0.001]
[1769994050732,0.01342642,2293.9,2292.7,0.001]
[1769994051035,0.01342642,2293.8,2292.7,0.001]
[1769994051834,1.09013212,2293.3,2292.3,2.79894151]
[1769994052138,0.01342642,2293.1,2292.3,0.001]
[1769994052308,0.01342642,2293.0,2292.3,0.001]
[1769994052509,0.01342642,2292.5,2290.7,13.91781958]
[1769994052732,0.01342642,2292.1,2290.9,1.09127417]
[1769994052938,0.01342642,2291.9,2290.9,1.09127417]
[1769994053440,0.01342642,2291.8,2290.8,2.9196533]
[1769994053739,0.01342642,2292.0,2290.8,1.09130541]
[1769994053740,0.5250994,2292.0,2290.8,1.09130541]
[1769994053941,0.5250994,2292.0,2290.7,4.36545334]
[1769994054244,1.61587665,2292.0,2291.5,0.001]
[1769994054736,0.5250994,2292.0,2291.5,0.001]
[1769994055110,0.30437956,2292.6,2291.5,0.001]
[1769994055312,1.39485591,2292.6,2291.5,0.001]
[1769994055523,0.30437956,2292.6,2291.5,0.001]
[1769994055733,1.39485069,2292.6,2291.5,0.001]
[1769994056039,1.97049644,2292.6,2291.5,0.001]
[1769994056242,0.01342642,2292.5,2291.5,0.001]
[1769994056427,0.01342642,2292.3,2291.5,0.001]
[1769994056632,0.01342642,2291.9,2290.8,1.09128838]
[1769994056832,0.01342642,2291.8,2290.8,1.63695487]
[1769994057014,0.01342642,2291.7,2290.8,4.91089716]
[1769994057340,0.01342642,2291.9,2291.0,1.09120054]
[1769994057641,0.01342642,2291.3,2290.4,1.3887942]
[1769994057829,0.01342642,2291.2,2290.4,0.87791041]
[1769994058041,1.09113128,2291.2,2290.4,1.09150519]
[1769994058411,1.09113128,2291.2,2290.3,0.001]
[1769994058612,1.1045577,2291.2,2290.4,1.09151005]
[1769994058817,1.65415127,2291.2,2290.4,15.045882]
[1769994059553,1.65415127,2291.2,2290.4,14.5]
[1769994059750,0.01342642,2290.9,2290.3,0.001]
[1769994059916,1.09141709,2290.6,2290.0,2.0]
[1769994060250,0.54959357,2291.2,2290.0,3.09167298]
[1769994060460,12.98872723,2291.9,2290.1,14.83181958]
[1769994060461,14.07959939,2291.8,2290.1,14.83181958]
[1769994060618,0.01342642,2291.6,2290.0,3.09167298]
[1769994060817,12.98872723,2291.4,2290.0,3.09167298]
[1769994061055,1.10429858,2291.8,2290.1,14.5]
[1769994061538,0.01342642,2292.0,2290.2,13.91781958]
[1769994061750,1.1040341,2292.3,2290.4,13.91781958]
[1769994061960,0.01342642,2292.2,2290.5,0.914]
[1769994062126,1.09070284,2292.1,2290.6,15.59141709]
[1769994062325,1.09069129,2292.2,2290.6,15.59141709]
[1769994062557,14.07931919,2292.4,2290.7,2.08710855]
[1769994062723,4.36220888,2292.5,2290.7,16.00492813]
[1769994062922,0.01342642,2292.3,2290.7,16.00492813]
[1769994063122,4.36220888,2292.5,2290.8,15.414]
[1769994063361,1.98396427,2292.6,2290.9,14.90502716]
[1769994063362,0.88002531,2292.6,2290.9,14.90502716]
[1769994063552,0.30437956,2292.6,2290.9,14.90502716]
[1769994064049,0.30437956,2292.6,2291.5,14.5]
[1769994064050,1e-08,2292.6,2291.5,14.5]
[1769994064252,1e-08,2292.6,2291.6,14.83181958]
[1769994064435,1e-08,2292.6,2291.5,14.5]
[1769994064962,1e-08,2292.6,2291.5,28.41781958]
[1769994065128,1e-08,2292.6,2291.6,1.39178196]
[1769994065324,1.09047186,2292.6,2291.6,2.30578196]
[1769994065558,1e-08,2292.6,2291.6,2.30578196]
[1769994066050,1e-08,2292.6,2291.8,1.09084562]
[1769994066631,0.0011,2292.4,2291.8,1.09084562]
[1769994066857,0.0011,2292.4,2291.9,0.54542281]
[1769994068233,0.0011,2292.4,2291.6,1.39178196]
[1769994068436,0.0011,2292.4,2291.1,13.91881958]
[1769994068437,0.01342642,2292.2,2291.4,1.09101512]
[1769994068643,0.51964045,2292.3,2291.6,1.09090383]
[1769994068942,0.01342642,2292.1,2291.1,1.09215746]
[1769994069151,0.01342642,2292.0,2291.1,1.09215746]
[1769994069359,0.53306687,2292.0,2291.2,1.09113108]
[1769994069538,0.01342642,2292.0,2291.2,1.09113108]
[1769994069730,0.01342642,2292.0,2291.2,1.99570022]
[1769994070259,1.09079802,2291.9,2291.2,1.99570022]
[1769994070464,0.0011,2292.4,2291.2,3.08679647]
[1769994070772,0.0011,2292.4,2291.2,14.35023959]
[1769994070974,0.0011,2292.4,2291.3,14.5]
[1769994071179,0.0011,2292.4,2291.4,0.914]
[1769994071462,0.0011,2292.4,2291.4,14.17314334]
[1769994071669,1e-08,2292.6,2291.5,13.25914334]
[1769994071871,0.0011,2293.6,2291.7,13.25914334]
[1769994072040,1.09110085,2293.6,2291.7,13.25914334]
[1769994072365,0.0011,2293.6,2291.9,13.25914334]
[1769994072565,0.0011,2293.6,2292.0,13.27256976]
[1769994072788,0.0011,2293.6,2292.4,13.25914334]
[1769994073091,0.0011,2293.6,2292.3,14.5]
[1769994073092,1e-08,2293.7,2292.5,15.32071952]
[1769994073673,1e-08,2293.7,2292.6,15.414]
[1769994074073,1e-08,2293.7,2292.6,14.5]
[1769994074074,1.08995227,2293.7,2292.6,14.5]
[1769994074274,0.55974109,2293.6,2292.7,2.07762499]
[1769994074496,0.01342642,2293.2,2291.6,13.25914334]
[1769994074790,0.54631467,2293.6,2292.6,1.09046342]
[1769994074991,1e-08,2293.7,2292.6,1.09046342]
[1769994075691,1e-08,2293.7,2292.0,4.3628581]
[1769994075692,0.01342642,2293.1,2292.0,4.3628581]
[1769994075884,0.01342642,2292.9,2292.1,1.09067108]
[1769994076059,0.01342642,2292.8,2292.1,0.54537973]
[1769994076259,1.09041741,2292.7,2291.8,4.36335011]
[1769994076866,0.01342642,2292.8,2291.8,4.36335011]
[1769994077056,1.09016579,2293.3,2291.8,4.36335011]
[1769994077262,4.35998604,2293.6,2291.9,13.25914334]
[1769994077492,1e-08,2293.7,2292.0,15.02139269]
[1769994077790,1e-08,2293.7,2292.2,13.25914334]
[1769994078011,1e-08,2293.7,2292.4,13.25914334]
[1769994078363,1e-08,2293.7,2292.5,1.09051254]
[1769994078576,1e-08,2293.7,2292.6,14.5]
[1769994078863,1e-08,2293.7,2292.7,1.55905125]
[1769994079260,1e-08,2293.7,2292.5,14.34965588]
[1769994079579,1e-08,2293.7,2292.8,14.5]
[1769994079775,0.0011,2293.5,2292.8,14.5]
[1769994079970,1e-08,2293.7,2292.9,13.25914334]
[1769994080179,1e-08,2293.7,2293.0,14.17314334]
[1769994080368,1.0893969,2294.9,2293.2,1.09017966]
[1769994080696,0.0011,2294.7,2293.2,14.349323]
[1769994081195,0.0011,2294.7,2293.3,13.36154334]
[1769994081395,0.0011,2294.7,2293.3,13.25914334]
[1769994081568,0.0011,2294.7,2293.5,13.25914334]
[1769994081768,0.0011,2294.7,2293.6,15.45967775]
[1769994082491,0.30766261,2295.4,2293.8,0.01342642]
[1769994082703,0.30766261,2295.4,2293.9,15.95708286]
[1769994082903,0.30766261,2295.4,2294.1,13.25914334]
[1769994083102,0.30766261,2295.4,2294.2,5.20764781]
[1769994083309,0.30766261,2295.4,2294.3,2.75896479]
[1769994083476,1.08897409,2295.8,2294.4,14.5]
[1769994084103,1.10240051,2295.8,2294.4,14.5]
[1769994084306,1.0888976,2295.9,2294.5,1.08956199]
[1769994084608,1.10326145,2296.3,2294.6,1.58385539]
[1769994084987,0.0011,2296.3,2294.7,14.5]
[1769994085178,0.0011,2296.3,2294.8,0.914]
[1769994085381,0.0011,2296.3,2295.0,13.25914334]
[1769994085582,0.0011,2296.9,2295.5,13.25914334]
[1769994085790,0.0011,2296.9,2295.6,14.17314334]
[1769994086288,0.0011,2296.9,2295.7,1.08899246]
[1769994086493,0.0011,2296.9,2295.8,0.914]
[1769994087209,0.0011,2297.2,2295.8,14.18656976]
[1769994087517,0.0011,2297.2,2296.0,13.25914334]
[1769994087693,0.0011,2297.5,2296.2,13.27256976]
[1769994088209,0.0011,2297.5,2296.3,0.914]
[1769994088512,0.0011,2297.5,2296.3,1.08870125]
[1769994088682,0.0011,2297.5,2295.9,1.54232528]
[1769994088683,0.01342642,2297.2,2296.1,0.913]
[1769994089008,1.31452286,2297.2,2296.1,1.08879449]
[1769994089208,0.01342642,2297.1,2296.2,1.08874755]
[1769994089409,1.32794928,2297.2,2295.3,17.62928759]
[1769994089611,0.01342642,2297.0,2296.2,1.08871939]
[1769994089910,0.01342642,2297.0,2295.9,4.35546367]
[1769994090115,0.01342642,2297.0,2296.1,1.0887835]
[1769994090317,0.01342642,2296.7,2295.4,0.913]
[1769994090716,1.10189733,2296.8,2295.4,0.913]
[1769994090885,17.47146544,2297.3,2295.4,0.913]
[1769994090886,2.40283515,2297.2,2295.4,0.913]
[1769994091086,1.98608494,2297.1,2295.4,14.17214334]
[1769994091317,1.98608494,2297.1,2295.5,13.27256976]
[1769994091492,2.40280438,2297.2,2295.5,13.27256976]
[1769994091698,2.40280438,2297.2,2295.2,1.08922969]
[1769994091699,0.01342642,2296.8,2295.2,1.08922969]
[1769994092030,0.01342642,2296.6,2295.5,0.913]
[1769994092239,0.01342642,2296.3,2295.2,1.08922969]
[1769994092525,1.08873798,2296.3,2294.8,0.913]
[1769994092730,1.08873798,2296.3,2294.9,0.52708088]
[1769994092731,0.54433997,2296.2,2294.9,0.52708088]
[1769994094192,1.0886344,2296.5,2294.9,0.52708088]
[1769994094408,1.0886344,2296.5,2295.0,1.08932461]
[1769994095014,0.01342642,2296.3,2295.0,1.08932461]
[1769994095205,1.10206082,2296.5,2295.0,1.08932461]
[1769994095206,1.0886344,2296.5,2295.0,1.08932461]
[1769994095605,0.0011,2296.7,2295.0,14.34846795]
[1769994095807,1.63406487,2296.7,2295.1,1.92462737]
[1769994095987,0.54554651,2296.7,2295.1,1.92462737]
[1769994096188,0.0011,2296.7,2295.2,13.27256976]
[1769994096637,0.0011,2296.7,2295.4,13.27256976]
[1769994097743,0.0011,2296.7,2295.5,0.913]
[1769994098337,0.0011,2296.7,2295.4,13.27256976]
[1769994098541,0.0011,2296.7,2295.7,1.08899246]
[1769994098838,0.0011,2297.5,2295.8,13.91822745]
[1769994099007,0.0011,2297.5,2296.0,13.2690048]
[1769994099215,0.0011,2297.5,2296.2,13.2690048]
[1769994099414,0.0011,2297.5,2296.3,14.1820048]
[1769994099757,0.0011,2297.5,2296.4,1.37859361]
[1769994100527,0.0011,2297.5,2296.4,1.08866051]
[1769994104627,0.0011,2297.5,2296.4,14.37109173]
[1769994104850,0.0011,2297.5,2296.5,0.01342642]
[1769994105518,0.0011,2297.5,2296.4,14.37109173]
[1769994105941,0.0011,2297.3,2296.4,14.37109173]
[1769994106124,0.0011,2297.5,2296.5,1.90567449]
[1769994106545,0.0011,2297.5,2296.4,1.08866051]
[1769994107745,0.0011,2297.5,2296.4,13.84017361]
[1769994107947,0.0011,2297.5,2296.5,12.7515131]
[1769994108322,0.0011,2297.9,2296.7,12.7515131]
[1769994108647,0.0011,2298.2,2297.4,0.01342642]
[1769994108839,0.0011,2298.2,2297.5,2.00113928]
[1769994109225,0.0011,2298.2,2297.5,1.08813928]
[1769994109728,0.0011,2298.2,2297.5,1.1015657]
[1769994110249,0.0011,2298.2,2297.8,0.01342642]
[1769994110451,0.0011,2298.4,2298.0,0.01342642]
[1769994110625,0.0011,2298.4,2298.1,0.01342642]
[1769994111150,0.0011,2298.4,2298.2,1.08780784]
[1769994111339,0.0011,2298.5,2298.3,0.54524657]
[1769994111543,1.08732112,2299.3,2298.3,0.54524657]
[1769994111851,0.0011,2299.4,2298.5,0.01342642]
[1769994112054,0.0011,2299.4,2298.9,0.01342642]
[1769994112348,13.84804939,2300.5,2299.3,0.01342642]
[1769994112550,14.93456667,2301.0,2299.6,0.01342642]
[1769994112721,16.95380076,2301.0,2299.7,0.01342642]
[1769994112918,16.95380076,2301.0,2299.9,1.08700378]
[1769994113118,16.95380076,2301.0,2299.4,1.08722143]
[1769994113350,13.84804939,2300.4,2298.8,1.10092484]
[1769994113655,13.84804939,2300.4,2298.3,0.54524657]
[1769994113656,13.84804939,2300.0,2298.0,0.01342642]
[1769994113853,13.86147581,2299.6,2297.6,2.00009192]
[1769994114151,13.84804939,2299.6,2297.8,0.01342642]
[1769994114868,13.84804939,2299.6,2298.1,0.01342642]
[1769994115033,14.93498129,2300.1,2298.8,0.01342642]
[1769994115358,0.1024,2300.7,2299.0,0.01342642]
[1769994115359,14.93476966,2300.6,2299.0,0.01342642]
[1769994115677,18.19498212,2300.5,2299.0,0.01342642]
[1769994115961,13.84804939,2300.4,2298.8,0.56123996]
[1769994116155,15.6675476,2300.3,2298.9,0.25742376]
[1769994116331,15.6675476,2300.3,2298.8,0.54781354]
[1769994116733,15.6675476,2300.3,2298.8,0.56123996]
[1769994116943,15.6675476,2300.3,2299.0,0.01342642]
[1769994117118,14.9349114,2300.2,2298.9,1.0874331]
[1769994117323,13.84804939,2300.0,2298.6,1.08759106]
[1769994117535,15.23285433,2299.9,2298.8,1.08751007]
[1769994117764,15.23285433,2299.9,2298.8,1.08751798]
[1769994117765,13.84804939,2299.9,2298.8,1.08751798]
[1769994117950,13.84804939,2299.9,2298.6,4.89415867]
[1769994118153,13.84804939,2299.9,2298.3,4.35100547]
[1769994118154,13.84804939,2299.9,2298.3,4.35101884]
[1769994118327,13.84804939,2299.7,2298.4,1.08768141]
[1769994118535,0.01342642,2299.8,2298.4,1.08768141]
[1769994118536,0.912,2300.0,2298.9,1.0874696]
[1769994118954,14.9349114,2300.2,2298.8,4.35108857]
[1769994119151,14.9349114,2300.2,2298.9,0.01342642]
[1769994119432,15.95823515,2300.1,2298.9,0.54788918]
[1769994119653,15.95823515,2300.1,2298.8,0.001]
[1769994119851,2.90635337,2300.3,2298.8,0.001]
[1769994120129,1.08678906,2300.4,2299.0,0.01342642]
[1769994120541,0.0011,2300.8,2299.2,0.01342642]
[1769994120741,0.0011,2300.8,2299.5,0.01342642]
[1769994120959,0.0011,2300.8,2299.6,0.01342642]
[1769994121160,1.08761434,2301.0,2300.2,0.01342642]
[1769994121161,0.0011,2301.0,2300.2,0.01342642]
[1769994121364,4.35722802,2302.2,2300.5,0.01342642]
[1769994121365,13.84804939,2302.2,2300.5,0.01342642]
[1769994121552,13.84804939,2301.6,2299.7,1.08709831]
[1769994121861,13.86147581,2300.8,2299.6,1.08714007]
[1769994122033,0.912,2301.0,2299.6,1.08714007]
[1769994122233,0.1024,2301.2,2299.6,1.08714007]
[1769994122438,13.84804939,2301.3,2299.6,1.08714007]
[1769994122672,1.38480494,2301.2,2299.7,1.47034403]
[1769994122958,1.38480494,2301.2,2299.8,0.92542642]
[1769994123257,18.19340705,2301.4,2299.9,1.08700378]
[1769994123459,1.0863425,2301.3,2299.9,1.08700378]
[1769994123661,0.01342642,2300.6,2299.3,1.08726193]
[1769994123866,13.86147581,2300.6,2299.3,1.08728479]
[1769994124161,15.23553961,2300.5,2299.3,0.5436689]
[1769994124329,0.01342642,2300.3,2299.2,1.08731949]
[1769994124529,13.84804939,2300.1,2298.8,0.001]
[1769994124735,0.01342642,2299.9,2298.8,0.001]
[1769994124941,1.38883287,2299.9,2298.8,0.001]
[1769994125142,1.08676751,2300.4,2298.8,0.001]
[1769994125659,13.86147581,2300.2,2298.8,0.001]
[1769994125849,0.01342642,2300.0,2298.8,0.001]
[1769994126157,0.01342642,2299.9,2298.8,0.001]
[1769994126539,13.86147581,2299.7,2297.8,0.001]
[1769994126740,13.84804939,2299.5,2298.2,1.08779483]
[1769994126943,13.84804939,2299.5,2298.2,1.08779688]
[1769994127159,1.08724014,2299.4,2297.8,0.001]
[1769994127561,0.01342642,2299.2,2297.8,0.001]
[1769994127769,0.01342642,2299.2,2297.4,12.73808668]
[1769994127770,0.01342642,2298.8,2297.4,1.08817061]
[1769994127958,0.11582642,2299.2,2297.6,1.08809058]
[1769994128155,13.0823619,2299.1,2297.7,0.44522755]
[1769994128359,0.01342642,2298.8,2297.4,1.08815173]